bitfinex/quotes_SOLUSD_20250226
["timestamp","ask_amount","ask_price","bid_price","bid_amount"]
[1740559688525,10.61607231,140.49,140.42,219.13]
[1740559688722,10.61607231,140.49,140.42,0.03]
[1740559688924,81.1,140.48,140.42,0.03]
[1740559689138,99.74964886,140.47,140.42,0.03]
[1740559689330,20.0,140.43,140.42,0.03]
[1740559689839,38.64964886,140.43,140.42,0.03]
[1740559690742,45.77054886,140.43,140.42,0.03]
[1740559691241,20.0,140.38,140.35,82.9]
[1740559691450,20.0,140.37,140.31,84.466]
[1740559691745,20.0,140.36,140.29,89.0151]
[1740559691944,18.64964886,140.36,140.29,6.1151]
[1740559692318,3.53979442,140.35,140.29,6.1151]
[1740559692517,20.0,140.34,140.29,6.1151]
[1740559692827,27.1258,140.34,140.29,6.1151]
[1740559693349,88.2244,140.37,140.29,6.1151]
[1740559694436,3.64963593,140.36,140.29,6.1151]
[1740559695143,81.1,140.37,140.29,13.2429]
[1740559695438,6.62,140.39,140.3,18.64964886]
[1740559695741,9.96400845,140.4,140.3,18.64964886]
[1740559695924,9.96400845,140.4,140.3,237.74964886]
[1740559696537,6.62,140.42,140.33,20.0]
[1740559696723,82.6006,140.44,140.33,20.0]
[1740559696724,91.01370065,140.44,140.35,8.0343]
[1740559696923,81.1,140.43,140.35,90.9343]
[1740559697141,7.1214,140.42,140.35,90.9343]
[1740559697342,18.64964886,140.41,140.35,89.305]
[1740559697932,29.31189787,140.42,140.35,89.305]
[1740559698137,20.0,140.38,140.31,90.9868]
[1740559699252,7.124,140.37,140.31,90.9868]
[1740559699449,7.124,140.37,140.35,0.03]
[1740559699629,88.224,140.37,140.35,0.03]
[1740559700744,18.64964886,140.36,140.29,96.6479]
[1740559700948,25.77464886,140.36,140.29,82.9]
[1740559701638,18.64964886,140.34,140.28,0.03]
[1740559701832,99.74964886,140.34,140.28,0.03]
[1740559702462,81.1,140.34,140.28,7.1584]
[1740559702636,21.0,140.38,140.28,7.1584]
[1740559702637,7.1241,140.37,140.28,7.1584]
[1740559702841,7.1241,140.37,140.28,226.2584]
[1740559703230,20.0,140.38,140.29,18.64964886]
[1740559703561,27.1236,140.38,140.29,18.64964886]
[1740559704228,30.63543575,140.38,140.29,18.64964886]
[1740559704428,30.63543575,140.38,140.3,7.1275]
[1740559704748,30.63543575,140.38,140.31,6.64]
[1740559705053,30.63543575,140.38,140.31,89.54]
[1740559705754,30.63543575,140.38,140.32,7.1265]
[1740559709741,30.63543575,140.38,140.32,90.0265]
[1740559710231,30.63543575,140.38,140.32,82.9]
[1740559714766,10.63543575,140.38,140.32,82.9]
[1740559714931,42.8423,140.43,140.32,82.9]
[1740559714932,0.063,140.44,140.35,61.48964886]
[1740559715135,3.69188761,140.44,140.36,6.6]
[1740559715534,0.063,140.44,140.37,18.64964886]
[1740559715747,0.063,140.44,140.37,237.74964886]
[1740559715948,0.063,140.44,140.38,6.2813]
[1740559716144,0.063,140.44,140.38,225.3813]
[1740559716557,0.063,140.44,140.4,20.23954886]
[1740559716741,0.063,140.44,140.43,7.1209]
[1740559716941,0.063,140.44,140.43,244.87054886]
[1740559717341,0.063,140.44,140.43,252.23464886]
[1740559717756,0.0001,140.44,140.43,253.23464886]
[1740559719269,0.063,140.5,140.46,20.0]
[1740559719443,0.063,140.5,140.47,6.6]
[1740559720343,0.063,140.5,140.47,13.7189]
[1740559720734,0.063,140.5,140.47,6.6]
[1740559721569,0.063,140.5,140.47,89.5]
[1740559722275,0.063,140.5,140.47,82.9]
[1740559722945,0.063,140.5,140.44,219.1]
[1740559723148,20.0,140.49,140.44,82.9]
[1740559724560,24.9162,140.47,140.4,219.1]
[1740559724755,24.9162,140.47,140.4,82.9]
[1740559725365,3.62642339,140.46,140.4,82.9]
[1740559726069,101.1,140.48,140.4,82.9]
[1740559726561,81.1,140.48,140.4,82.9]
[1740559727750,7.1189,140.47,140.4,90.0222]
[1740559730376,7.1189,140.47,140.4,226.2222]
[1740559732671,7.1189,140.47,140.4,219.1]
[1740559733049,99.74964886,140.46,140.37,84.4001]
[1740559733372,81.1,140.45,140.37,82.9]
[1740559733677,24.9215,140.44,140.37,82.9]
[1740559734060,99.74964886,140.43,140.35,96.0732]
[1740559734362,18.64964886,140.41,140.33,82.9]
[1740559734555,102.53972501,140.41,140.33,82.9]
[1740559734755,106.1704617,140.41,140.33,82.9]
[1740559734955,87.52081284,140.41,140.35,0.03]
[1740559736161,7.1225,140.4,140.35,0.03]
[1740559736680,24.9287,140.4,140.35,0.03]
[1740559738779,7.1225,140.4,140.35,82.93]
[1740559740576,7.1221,140.41,140.35,82.93]
[1740559742582,10.63003728,140.41,140.35,82.93]
[1740559744783,106.34964886,140.4,140.35,0.03]
[1740559744969,82.6516,140.39,140.35,0.03]
[1740559746276,3.63894794,140.37,140.35,0.03]
[1740559746785,7.1245,140.36,140.35,0.03]
[1740559747386,7.1235,140.38,140.35,0.03]
[1740559747982,7.1225,140.4,140.35,0.03]
[1740559748176,7.1225,140.4,140.35,82.93]
[1740559749370,17.7996,140.46,140.36,24.93894886]
[1740559749585,7.1194,140.46,140.36,245.68714886]
[1740559749785,3.55156911,140.45,140.36,245.68714886]
[1740559750088,6.50218964,140.49,140.38,18.64964886]
[1740559750290,6.50218964,140.49,140.4,18.64964886]
[1740559750291,7.1186,140.48,140.4,18.64964886]
[1740559750991,7.1179,140.49,140.41,7.1219]
[1740559751164,7.1179,140.49,140.41,90.0219]
[1740559751366,7.1179,140.49,140.42,18.64964886]
[1740559751973,7.1179,140.49,140.42,25.77104886]
[1740559753085,0.063,140.5,140.42,244.87104886]
[1740559753471,7.1806,140.5,140.42,244.87104886]
[1740559754379,7.1806,140.5,140.42,219.1]
[1740559755298,24.9741,140.5,140.42,219.1]
[1740559755994,24.9741,140.5,140.43,18.64964886]
[1740559756191,7.1806,140.5,140.44,6.4212]
[1740559756374,7.1806,140.5,140.44,89.3212]
[1740559756772,7.1806,140.5,140.44,95.9212]
[1740559757194,7.1806,140.5,140.44,103.0416]
[1740559758089,0.063,140.5,140.44,95.9212]
[1740559758490,0.063,140.5,140.44,82.9]
[1740559759501,24.9127,140.49,140.41,89.085]
[1740559759680,81.1,140.48,140.41,82.93]
[1740559759991,81.1,140.48,140.41,0.03]
[1740559759992,20.0,140.44,140.41,0.03]
[1740559761604,7.1209,140.43,140.41,0.03]
[1740559765700,7.1206,140.44,140.41,0.03]
[1740559765908,7.1189,140.47,140.41,82.93]
[1740559766089,7.1186,140.48,140.42,18.64964886]
[1740559766283,7.1181,140.49,140.43,1.6076]
[1740559766799,0.063,140.5,140.43,1.6076]
[1740559767004,7.1804,140.5,140.43,84.5076]
[1740559767707,0.063,140.5,140.44,25.05974886]
[1740559768606,0.063,140.5,140.46,18.64964886]
[1740559768791,0.063,140.5,140.46,244.34964886]
[1740559770810,0.063,140.5,140.46,225.7]
[1740559771016,0.063,140.5,140.46,6.6]
[1740559771589,20.063,140.5,140.44,89.3101]
[1740559771891,7.1179,140.49,140.44,89.3101]
[1740559772816,7.1179,140.49,140.44,96.4305]
[1740559773108,0.063,140.5,140.45,18.64964886]
[1740559773318,0.063,140.5,140.46,6.6]
[1740559773492,0.063,140.5,140.46,89.5]
[1740559773813,0.063,140.5,140.46,225.7]
[1740559774028,0.063,140.5,140.47,18.64964886]
[1740559774335,0.063,140.5,140.49,20.0]
[1740559774491,0.063,140.5,140.49,219.1]
[1740559775814,0.063,140.5,140.49,226.2179]
[1740559776911,0.063,140.5,140.49,219.1]
[1740559777121,0.063,140.5,140.49,82.9]
[1740559778129,0.063,140.5,140.49,237.74964886]
[1740559778919,0.063,140.5,140.49,244.86754886]
[1740559779615,0.063,140.56,140.5,18.64964886]
[1740559779798,0.063,140.56,140.52,18.64964886]
[1740559779998,0.063,140.56,140.52,237.74964886]
[1740559781119,0.063,140.56,140.52,244.86564886]
[1740559782495,0.063,140.56,140.53,6.539]
[1740559782716,0.063,140.56,140.54,18.64964886]
[1740559782995,0.063,140.56,140.55,1.5181]
[1740559783915,0.063,140.56,140.55,248.44940267]
[1740559784117,0.063,140.56,140.55,311.70264886]
[1740559784307,0.063,140.56,140.55,312.70264886]
[1740559784609,0.063,140.59,140.58,20.0]
[1740559784820,0.063,140.59,140.58,270.91684886]
[1740559785324,0.063,140.59,140.58,294.36684886]
[1740559785825,0.063,140.59,140.58,301.48014886]
[1740559788301,0.063,140.59,140.58,280.03014886]
[1740559788624,0.063,140.59,140.58,278.03014886]
[1740559788829,0.063,140.59,140.58,89.4672]
[1740559789002,0.063,140.59,140.58,108.11684886]
[1740559789307,0.063,140.59,140.58,115.23014886]
[1740559791718,0.063,140.59,140.58,89.4672]
[1740559793427,0.063,140.59,140.58,82.9]
[1740559795232,0.063,140.59,140.56,82.93]
[1740559799006,0.063,140.59,140.57,18.64964886]
[1740559799205,0.063,140.59,140.57,101.54964886]
[1740559800525,0.063,140.59,140.57,237.74964886]
[1740559800826,0.063,140.59,140.57,219.1]
[1740559801901,0.063,140.59,140.57,226.2138]
[1740559802333,0.063,140.59,140.57,219.1]
[1740559804434,0.063,140.59,140.57,226.2138]
[1740559804618,0.063,140.59,140.58,25.76294886]
[1740559804818,0.063,140.59,140.58,244.86294886]
[1740559805711,0.063,140.59,140.58,237.74964886]
[1740559806016,0.063,140.59,140.58,244.86294886]
[1740559806206,0.063,140.59,140.58,237.74964886]
[1740559806610,0.063,140.59,140.58,244.86294886]
[1740559806811,0.063,140.59,140.58,219.1]
[1740559810635,0.063,140.59,140.58,82.9]
[1740559811840,0.063,140.59,140.56,219.13]
[1740559812142,0.063,140.59,140.56,0.03]
[1740559815736,20.0,140.58,140.56,0.03]
[1740559817242,7.1138,140.57,140.56,0.03]
[1740559817923,7.1759,140.59,140.56,0.03]
[1740559818128,0.063,140.59,140.56,82.93]
[1740559820737,0.063,140.59,140.56,90.0443]
[1740559824143,0.063,140.59,140.58,20.0]
[1740559824350,0.063,140.59,140.58,26.58]
[1740559825551,0.063,140.59,140.58,33.6933]
[1740559826046,0.063,140.59,140.58,271.44294886]
[1740559828245,0.063,140.59,140.58,272.44294886]
[1740559832049,0.063,140.59,140.58,271.44294886]
[1740559833948,0.063,140.59,140.58,102.9]
[1740559834148,0.063,140.59,140.56,82.93]
[1740559836254,0.063,140.59,140.56,90.0442]
[1740559837652,0.063,140.59,140.56,226.2442]
[1740559841230,6.7995,140.64,140.56,226.2442]
[1740559842135,1.6837,140.65,140.58,7.1133]
[1740559842335,8.7937,140.65,140.58,226.2133]
[1740559842551,8.7937,140.65,140.59,6.58]
[1740559842858,8.7937,140.65,140.59,89.48]
[1740559843051,1.6837,140.65,140.59,89.48]
[1740559843254,0.063,140.65,140.59,89.48]
[1740559843455,0.063,140.65,140.6,18.64964886]
[1740559843846,0.063,140.65,140.6,237.74964886]
[1740559844248,0.063,140.65,140.61,7.1118]
[1740559848158,0.063,140.65,140.64,20.0]
[1740559848359,0.063,140.65,140.64,244.32964886]
[1740559849445,0.063,140.65,140.64,225.68]
[1740559849860,0.063,140.65,140.64,244.32964886]
[1740559850443,0.063,140.65,140.64,251.43994886]
[1740559851156,0.063,140.65,140.64,96.5903]
[1740559851358,0.063,140.65,140.64,89.48]
[1740559852947,0.063,140.65,140.64,6.58]
[1740559853146,0.063,140.65,140.62,219.1]
[1740559853356,0.063,140.65,140.6,89.48]
[1740559854151,0.063,140.65,140.61,0.063]
[1740559856663,0.063,140.65,140.61,18.71264886]
[1740559856862,0.063,140.65,140.61,219.163]
[1740559858569,0.063,140.65,140.61,82.963]
[1740559860146,0.063,140.65,140.61,0.063]
[1740559860346,1.5694,140.64,140.61,0.063]
[1740559861572,7.1108,140.63,140.61,0.063]
[1740559863055,6.1536,140.61,140.56,0.03]
[1740559863256,99.74964886,140.6,140.56,0.03]
[1740559863683,1.6443,140.59,140.56,0.03]
[1740559863985,20.0,140.57,140.56,0.03]
[1740559864279,81.1,140.58,140.56,0.03]
[1740559864981,7.1138,140.57,140.56,0.03]
[1740559866173,28.65106997,140.57,140.56,0.03]
[1740559867256,109.75106997,140.57,140.56,0.03]
[1740559867457,113.24347794,140.57,140.56,0.03]
[1740559868676,20.0,140.54,140.48,82.9]
[1740559868884,81.1,140.53,140.45,6.1614]
[1740559869054,20.0,140.49,140.45,82.9]
[1740559869369,20.0,140.48,140.42,82.9]
[1740559869572,101.1,140.48,140.41,0.03]
[1740559869874,7.1189,140.47,140.41,0.03]
[1740559870071,24.9162,140.47,140.41,0.03]
[1740559871078,7.1189,140.47,140.41,0.03]
[1740559871986,98.8907,140.53,140.43,18.64964886]
[1740559872188,98.8907,140.53,140.43,237.74964886]
[1740559872372,81.1,140.53,140.43,237.74964886]
[1740559872559,7.1165,140.52,140.43,237.74964886]
[1740559873365,7.1165,140.52,140.44,7.1204]
[1740559875196,13.5827,140.54,140.45,18.64964886]
[1740559875372,1.5726,140.56,140.47,18.64964886]
[1740559875700,8.6871,140.56,140.48,6.58]
[1740559875899,17.7832,140.59,140.48,6.58]
[1740559875900,88.213,140.59,140.49,18.64964886]
[1740559876065,1.5319,140.6,140.49,237.74964886]
[1740559876378,12.18401182,140.6,140.49,237.74964886]
[1740559876964,12.18401182,140.6,140.5,7.1174]
[1740559877989,12.18401182,140.6,140.5,7.1804]
[1740559878183,29.96491182,140.6,140.5,7.1804]
[1740559879088,111.06491182,140.6,140.5,226.2804]
[1740559879580,91.85107271,140.62,140.51,18.64964886]
[1740559879793,10.75107271,140.62,140.54,26.3572]
[1740559880088,7.1409,140.63,140.55,6.58]
[1740559880288,7.1409,140.63,140.55,225.68]
[1740559880494,0.03,140.63,140.56,18.64964886]
[1740559880789,7.1408,140.63,140.55,225.68]
[1740559881585,0.03,140.63,140.55,232.7947]
[1740559883192,0.03,140.63,140.57,7.1138]
[1740559883372,0.03,140.63,140.57,90.0138]
[1740559883772,0.03,140.63,140.57,82.9]
[1740559885590,0.03,140.63,140.55,89.48]
[1740559885889,99.74964886,140.62,140.54,6.3572]
[1740559886093,18.64964886,140.6,140.51,89.48]
[1740559886386,81.1,140.61,140.51,114.3892]
[1740559886783,81.1,140.61,140.51,250.5892]
[1740559886784,20.0,140.61,140.51,250.5892]
[1740559886984,3.50683001,140.62,140.52,18.64964886]
[1740559887502,7.1118,140.61,140.53,7.1159]
[1740559887787,18.64964886,140.6,140.53,82.9]
[1740559888393,81.1,140.61,140.53,82.9]
[1740559888992,3.50683001,140.62,140.53,219.1]
[1740559889301,0.03,140.63,140.54,18.64964886]
[1740559889476,0.03,140.6,140.55,6.58]
[1740559889672,0.03,140.6,140.56,7.1143]
[1740559893979,0.03,140.6,140.56,90.0143]
[1740559896987,0.03,140.6,140.56,82.9]
[1740559897378,0.03,140.6,140.55,6.58]
[1740559898205,81.1,140.59,140.52,6.58]
[1740559899078,7.1133,140.58,140.52,6.58]
[1740559899699,10.66806815,140.58,140.52,6.58]
[1740559905509,0.03,140.6,140.52,232.7962]
[1740559905682,0.03,140.6,140.53,18.64964886]
[1740559906507,0.03,140.6,140.56,20.0]
[1740559906732,0.03,140.6,140.56,102.9]
[1740559907019,0.03,140.6,140.57,6.58]
[1740559907608,0.03,140.6,140.57,13.6938]
[1740559908603,0.03,140.6,140.57,234.3254]
[1740559908797,0.03,140.6,140.58,6.6433]
[1740559909107,0.03,140.6,140.59,18.64964886]
[1740559909280,0.03,140.6,140.59,237.74964886]
[1740559910009,0.03,140.6,140.59,244.86244886]
[1740559913095,0.03,140.63,140.62,20.0]
[1740559913292,0.03,140.63,140.62,109.48]
[1740559914396,0.03,140.63,140.62,82.9]
[1740559914794,0.03,140.63,140.62,90.0113]
[1740559915488,0.03,140.63,140.62,82.9]
[1740559916108,0.03,140.63,140.59,82.9]
[1740559916318,0.03,140.63,140.59,89.48]
[1740559917603,0.03,140.63,140.59,82.9]
[1740559917798,0.03,140.63,140.56,82.963]
[1740559918193,0.03,140.63,140.56,0.063]
[1740559918407,24.8914,140.61,140.56,0.063]
[1740559918590,99.74964886,140.6,140.56,0.063]
[1740559918795,105.94124886,140.6,140.56,0.063]
[1740559920511,0.03,140.63,140.59,20.0]
[1740559920709,0.03,140.63,140.59,102.9]
[1740559920890,0.03,140.63,140.59,82.9]
[1740559921091,7.1409,140.63,140.59,82.9]
[1740559922396,0.03,140.63,140.59,82.9]
[1740559923393,0.03,140.63,140.59,90.0127]
[1740559924088,0.03,140.63,140.59,82.9]
[1740559924291,0.03,140.63,140.59,90.0128]
[1740559926122,0.03,140.63,140.59,82.9]
[1740559926413,20.0,140.6,140.56,0.063]
[1740559926707,18.64964886,140.61,140.56,0.063]
[1740559927094,99.74964886,140.61,140.56,0.063]
[1740559927506,18.64964886,140.59,140.56,0.063]
[1740559928104,10.70068486,140.58,140.56,0.063]
[1740559929195,7.1133,140.58,140.56,0.063]
[1740559929525,7.112,140.61,140.56,0.063]
[1740559929734,7.1115,140.62,140.56,0.063]
[1740559930299,0.03,140.63,140.56,0.063]
[1740559930596,7.1408,140.63,140.56,0.063]
[1740559931796,0.03,140.63,140.57,1.649]
[1740559932016,0.03,140.63,140.58,6.58]
[1740559932596,0.03,140.63,140.58,225.68]
[1740559933416,0.03,140.63,140.59,18.64964886]
[1740559933619,0.03,140.63,140.61,18.64964886]
[1740559934713,0.03,140.63,140.62,7.1113]
[1740559934895,0.03,140.63,140.62,226.2113]
[1740559935817,0.03,140.63,140.62,244.86094886]
[1740559936130,0.03,140.63,140.62,251.44084886]
[1740559939225,0.063,140.65,140.64,2.0]
[1740559939409,0.063,140.66,140.65,38.64964886]
[1740559939611,0.063,140.66,140.65,258.74964886]
[1740559942937,0.063,140.67,140.65,258.74964886]
[1740559943111,0.063,140.67,140.66,1.06586026]
[1740559943535,0.063,140.67,140.65,226.2098]
[1740559944660,0.063,140.67,140.66,6.58]
[1740559945748,0.063,140.67,140.66,13.6893]
[1740559945944,0.063,140.67,140.66,32.33894886]
[1740559947852,0.063,140.67,140.66,13.6893]
[1740559948226,0.063,140.67,140.66,7.1093]
[1740559948426,0.063,140.67,140.65,232.7896]
[1740559950032,0.063,140.67,140.66,18.64964886]
[1740559950432,0.063,140.67,140.66,237.74964886]
[1740559951642,0.063,140.67,140.66,244.85894886]
[1740559955034,0.0001,140.7,140.69,87.66224886]
[1740559955343,0.0001,140.7,140.69,306.76224886]
[1740559956553,0.0001,140.7,140.69,263.89224886]
[1740559957338,0.0001,140.7,140.69,271.00004886]
[1740559958562,0.0001,140.7,140.69,313.87004886]
[1740559959556,0.0001,140.7,140.69,314.87004886]
[1740559960042,0.0001,140.7,140.69,315.87004886]
[1740559960637,0.0001,140.7,140.69,317.43584886]
[1740559961047,0.0001,140.7,140.69,316.43584886]
[1740559961250,0.0001,140.7,140.69,315.43584886]
[1740559962159,0.0001,140.7,140.69,272.56584886]
[1740559962355,0.0001,140.7,140.69,244.85744886]
[1740559962545,0.0001,140.7,140.69,237.74964886]
[1740559963056,0.0001,140.7,140.69,244.85744886]
[1740559963449,0.0001,140.7,140.69,251.41744886]
[1740559963758,0.0001,140.7,140.69,219.1]
[1740559963955,0.0001,140.7,140.69,89.46]
[1740559964157,0.0001,140.7,140.69,82.9]
[1740559967666,0.0001,140.7,140.69,90.0078]
[1740559967869,0.0001,140.7,140.69,82.9]
[1740559970249,0.0001,140.7,140.67,82.9]
[1740559970847,0.0001,140.7,140.66,0.063]
[1740559971054,21.6075,140.69,140.66,0.063]
[1740559971656,1.6075,140.69,140.66,0.063]
[1740559971865,21.6075,140.69,140.66,0.063]
[1740559972255,7.1083,140.68,140.66,0.063]
[1740559979178,0.0001,140.7,140.66,0.063]
[1740559979475,0.0001,140.7,140.66,219.163]
[1740559980380,0.0001,140.7,140.66,226.2722]
[1740559981056,0.0001,140.7,140.66,219.163]
[1740559981660,20.0,140.69,140.66,82.963]
[1740559982379,27.1082,140.69,140.66,82.963]
[1740559983063,7.1075,140.7,140.66,82.963]
[1740559983880,0.0001,140.7,140.66,82.963]
[1740559984186,0.0001,140.7,140.66,90.0722]
[1740559985366,0.0001,140.7,140.66,82.963]
[1740559985886,0.0001,140.7,140.66,0.063]
[1740559986686,7.1074,140.7,140.66,0.063]
[1740559987384,24.8757,140.7,140.66,0.063]
[1740559989097,20.0,140.67,140.66,0.063]
[1740559990174,2.86232157,140.67,140.66,0.063]
[1740559990387,3.61727269,140.68,140.66,0.063]
[1740559990388,9.93197269,140.68,140.66,0.063]
[1740559990590,20.25334886,140.67,140.66,0.0001]
[1740559990780,27.36214886,140.67,140.66,0.0001]
[1740559991090,108.46214886,140.67,140.66,0.0001]
[1740559991297,111.25948216,140.67,140.66,0.0001]
[1740559992408,20.0,140.64,140.6,0.063]
[1740559993394,88.2088,140.67,140.6,0.063]
[1740559993596,17.7696,140.69,140.61,18.64964886]
[1740559993597,7.1082,140.69,140.61,18.64964886]
[1740559993794,7.1082,140.69,140.66,0.063]
[1740559994378,7.1074,140.7,140.66,0.063]
[1740559994673,10.01113121,140.7,140.66,0.063]
[1740559994994,27.77943121,140.7,140.66,0.063]
[1740559995498,7.1074,140.7,140.66,0.063]
[1740560002319,0.0001,140.7,140.66,0.063]
[1740560006914,0.0001,140.7,140.66,82.963]
[1740560008893,20.0,140.69,140.66,0.063]
[1740560010028,0.0001,140.7,140.66,0.063]
[1740560010402,20.0,140.69,140.66,0.063]
[1740560010806,27.1081,140.69,140.66,0.063]
[1740560011425,0.0001,140.7,140.66,82.963]
[1740560011796,7.1074,140.7,140.66,82.963]
[1740560013023,0.0001,140.7,140.66,82.963]
[1740560024222,0.0001,140.7,140.66,90.0723]
[1740560026725,0.0001,140.7,140.66,82.963]
[1740560033610,0.0001,140.7,140.66,0.063]
[1740560039438,0.0001,140.7,140.66,82.963]
[1740560044636,0.0001,140.7,140.66,90.0722]
[1740560044822,0.0001,140.7,140.66,82.963]
[1740560047045,0.0001,140.7,140.67,1.6556]
[1740560049236,0.0001,140.7,140.67,84.5556]
[1740560055625,0.0001,140.7,140.68,18.64964886]
[1740560055825,0.0001,140.7,140.69,25.13734886]
[1740560056042,0.0001,140.7,140.69,244.23734886]
[1740560058751,0.03,140.72,140.7,18.64964886]
[1740560058954,0.03,140.72,140.71,8.0605]
[1740560060158,0.03,140.72,140.71,15.1673]
[1740560060532,0.03,140.72,140.71,58.0373]
[1740560060736,0.03,140.72,140.71,15.1673]
[1740560062135,0.03,140.72,140.71,33.81694886]
[1740560062550,0.03,140.72,140.71,252.91694886]
[1740560068040,0.03,140.72,140.71,246.35694886]
[1740560068240,0.03,140.72,140.71,252.91694886]
[1740560070964,0.03,140.72,140.71,89.46]
[1740560071154,0.03,140.72,140.71,82.9]
[1740560072475,0.03,140.72,140.71,101.54964886]
[1740560072643,0.03,140.72,140.71,108.65644886]
[1740560075178,0.03,140.72,140.71,244.85644886]
[1740560078469,0.03,140.72,140.71,114.66814886]
[1740560078676,0.063,140.73,140.72,18.64964886]
[1740560078849,0.063,140.73,140.72,244.30964886]
[1740560079853,0.063,140.73,140.72,251.41594886]
[1740560080365,0.0001,140.73,140.72,251.41594886]
[1740560080777,0.0001,140.74,140.72,318.27094886]
[1740560080977,0.0001,140.75,140.74,91.05914886]
[1740560081177,0.0001,140.75,140.74,310.15914886]
[1740560081377,0.03,140.78,140.77,62.79]
[1740560081583,0.03,140.78,140.77,307.09964886]
[1740560081758,0.03,140.78,140.77,330.16464886]
[1740560081959,118.86430646,140.86,140.77,355.02774886]
[1740560082173,118.86430646,140.86,140.78,82.83964886]
[1740560082376,118.86430646,140.86,140.82,62.79]
[1740560082679,118.86430646,140.86,140.84,61.43964886]
[1740560082868,1.9805374,140.87,140.84,61.43964886]
[1740560083186,1.9805374,140.87,140.84,287.17084886]
[1740560084057,1.9805374,140.87,140.84,294.27104886]
[1740560084681,1.9805374,140.87,140.84,251.48104886]
[1740560085181,1.9805374,140.87,140.84,244.38084886]
[1740560085367,1.9805374,140.87,140.84,244.30964886]
[1740560086162,1.9805374,140.87,140.84,82.9]
[1740560086379,1.9805374,140.87,140.82,6.56]
[1740560086559,9.0794374,140.87,140.82,6.56]
[1740560088372,26.8262374,140.87,140.82,6.56]
[1740560088561,26.8262374,140.87,140.79,82.9]
[1740560088562,20.0,140.84,140.79,82.9]
[1740560088763,20.0,140.84,140.76,219.1]
[1740560088985,26.4955,140.84,140.76,82.9]
[1740560090558,7.1007,140.83,140.76,82.9]
[1740560091092,3.56217552,140.82,140.76,82.9]
[1740560091794,7.1017,140.81,140.76,82.9]
[1740560100995,10.66357552,140.82,140.76,82.9]
[1740560101595,7.1008,140.83,140.77,18.64964886]
[1740560102699,7.1002,140.84,140.78,7.1032]
[1740560102888,7.1002,140.84,140.78,219.1]
[1740560103972,7.1002,140.84,140.78,226.2032]
[1740560105473,88.2002,140.84,140.75,225.723]
[1740560105679,1.545,140.83,140.75,89.523]
[1740560106086,6.6037,140.82,140.75,82.963]
[1740560106489,3.5298644,140.81,140.75,82.963]
[1740560106998,7.1022,140.8,140.75,82.963]
[1740560107205,7.1022,140.8,140.75,0.063]
[1740560108305,24.8578,140.8,140.75,0.063]
[1740560108493,1.5801,140.79,140.75,0.063]
[1740560109402,7.1032,140.78,140.75,0.063]
[1740560109781,1.5801,140.79,140.75,0.063]
[1740560109988,6.6037,140.82,140.75,82.963]
[1740560110180,7.1014,140.82,140.76,6.54]
[1740560111509,7.1014,140.82,140.76,13.6441]